[Event "Early Titled Tuesday Blitz | February 8 2022"]
[White "Rozhkov, Viacheslav"]
[Black "Muradov, Soltan"]
[WhiteFideId "4181484"]
[BlackFideId "14002108"]
[WhiteElo "2324"]
[BlackElo "1854"]
[Result "1-0"]
[Round "02"]
[TimeControl "180+1"]
[Date "2022.02.08"]
[WhiteClock "0:00:04"]
[BlackClock "0:00:12"]

1. e4 {[%clk 0:03:00]}  c5 {[%clk 0:02:55]} 2. Nf3 {[%clk 0:02:59]}  d6 {[%clk 0:02:56]} 3. d4 {[%clk 0:02:59]}  cxd4 {[%clk 0:02:57]} 4. Nxd4 {[%clk 0:03:00]}  Nf6 {[%clk 0:02:58]} 5. Nc3 {[%clk 0:03:00]}  e6 {[%clk 0:02:58]} 6. g4 {[%clk 0:02:58]}  h6 {[%clk 0:02:58]} 7. Bg2 {[%clk 0:02:57]}  Be7 {[%clk 0:02:57]} 8. O-O {[%clk 0:02:51]}  Nc6 {[%clk 0:02:44]} 9. Nxc6 {[%clk 0:02:41]}  bxc6 {[%clk 0:02:44]} 10. e5 {[%clk 0:02:42]}  Nd5 {[%clk 0:02:45]} 11. Ne4 {[%clk 0:02:24]}  dxe5 {[%clk 0:02:42]} 12. c4 {[%clk 0:02:16]}  Nb6 {[%clk 0:02:41]} 13. Qe2 {[%clk 0:02:15]}  O-O {[%clk 0:02:31]} 14. b3 {[%clk 0:02:07]}  c5 {[%clk 0:02:15]} 15. Rd1 {[%clk 0:01:31]}  Qc7 {[%clk 0:02:14]} 16. g5 {[%clk 0:01:31]}  hxg5 {[%clk 0:01:44]} 17. Bxg5 {[%clk 0:01:27]}  Bb7 {[%clk 0:01:41]} 18. Qh5 {[%clk 0:01:02]}  f5 {[%clk 0:01:37]} 19. Bxe7 {[%clk 0:00:57]}  Bxe4 {[%clk 0:01:06]} 20. Bd6 {[%clk 0:00:33]}  Qb7 {[%clk 0:00:31]} 21. Bxe4 {[%clk 0:00:30]}  Qxe4 {[%clk 0:00:28]} 22. Re1 {[%clk 0:00:29]}  Qc6 {[%clk 0:00:24]} 23. Bxe5 {[%clk 0:00:26]}  Nd7 {[%clk 0:00:22]} 24. Bb2 {[%clk 0:00:20]}  e5 {[%clk 0:00:21]} 25. Rad1 {[%clk 0:00:18]}  Rae8 {[%clk 0:00:20]} 26. Rd5 {[%clk 0:00:18]}  Re6 {[%clk 0:00:14]} 27. Red1 {[%clk 0:00:16]}  Nb6 {[%clk 0:00:08]} 28. Rd8 {[%clk 0:00:15]}  Ree8 {[%clk 0:00:08]} 29. Rxe8 {[%clk 0:00:15]}  Rxe8 {[%clk 0:00:08]} 30. Qxf5 {[%clk 0:00:15]}  Re6 {[%clk 0:00:08]} 31. Rd8+ {[%clk 0:00:13]}  Re8 {[%clk 0:00:08]} 32. Rxe8+ {[%clk 0:00:13]}  Qxe8 {[%clk 0:00:09]} 33. Qxe5 {[%clk 0:00:13]}  Qg6+ {[%clk 0:00:10]} 34. Kf1 {[%clk 0:00:13]}  Qd3+ {[%clk 0:00:10]} 35. Kg2 {[%clk 0:00:13]}  Qg6+ {[%clk 0:00:10]} 36. Qg3 {[%clk 0:00:13]}  Qe4+ {[%clk 0:00:10]} 37. Qf3 {[%clk 0:00:09]}  Qg6+ {[%clk 0:00:04]} 38. Kh3 {[%clk 0:00:06]}  Qh6+ {[%clk 0:00:04]} 39. Kg3 {[%clk 0:00:06]}  Qg6+ {[%clk 0:00:04]} 40. Qg4 {[%clk 0:00:06]}  Qd3+ {[%clk 0:00:05]} 41. f3 {[%clk 0:00:07]}  Qd6+ {[%clk 0:00:03]} 42. Kh3 {[%clk 0:00:06]}  Qh6+ {[%clk 0:00:04]} 43. Qh4 {[%clk 0:00:06]}  Qe6+ {[%clk 0:00:04]} 44. Kg3 {[%clk 0:00:06]}  Qd6+ {[%clk 0:00:05]} 45. Qf4 {[%clk 0:00:06]}  Qg6+ {[%clk 0:00:05]} 46. Kh4 {[%clk 0:00:05]}  Qh7+ {[%clk 0:00:04]} 47. Kg4 {[%clk 0:00:05]}  Qg6+ {[%clk 0:00:05]} 48. Qg5 {[%clk 0:00:05]}  Qe6+ {[%clk 0:00:05]} 49. Kh5 {[%clk 0:00:04]}  Qf7+ {[%clk 0:00:05]} 50. Kh4 {[%clk 0:00:05]}  Nd7 {[%clk 0:00:04]} 51. f4 {[%clk 0:00:04]}  Nf8 {[%clk 0:00:02]} 52. Kg4 {[%clk 0:00:04]}  Nh7 {[%clk 0:00:03]} 53. Qf5 {[%clk 0:00:03]}  Nf8 {[%clk 0:00:03]} 54. Qxf7+ {[%clk 0:00:03]}  Kxf7 {[%clk 0:00:04]} 55. Kf5 {[%clk 0:00:04]}  Ne6 {[%clk 0:00:05]} 56. Ke5 {[%clk 0:00:04]}  g6 {[%clk 0:00:05]} 57. h4 {[%clk 0:00:04]}  Ng7 {[%clk 0:00:05]} 58. Kd5 {[%clk 0:00:04]}  Nf5 {[%clk 0:00:06]} 59. Kxc5 {[%clk 0:00:04]}  Nxh4 {[%clk 0:00:06]} 60. Kc6 {[%clk 0:00:04]}  Ng2 {[%clk 0:00:06]} 61. Be5 {[%clk 0:00:04]}  Ke6 {[%clk 0:00:05]} 62. Kb7 {[%clk 0:00:04]}  g5 {[%clk 0:00:06]} 63. c5 {[%clk 0:00:03]}  gxf4 {[%clk 0:00:06]} 64. Bd4 {[%clk 0:00:01]}  f3 {[%clk 0:00:06]} 65. c6 {[%clk 0:00:01]}  Ne3 {[%clk 0:00:06]} 66. Bxe3 {[%clk 0:00:01]}  Kd5 {[%clk 0:00:07]} 67. c7 {[%clk 0:00:02]}  Ke4 {[%clk 0:00:08]} 68. c8=Q {[%clk 0:00:02]}  Kd3 {[%clk 0:00:09]} 69. Qe6 {[%clk 0:00:02]}  Ke2 {[%clk 0:00:10]} 70. Bd4+ {[%clk 0:00:03]}  Kf1 {[%clk 0:00:11]} 71. Qe3 {[%clk 0:00:03]}  Kg2 {[%clk 0:00:12]} 72. Qf2+ {[%clk 0:00:04]}  Kh3 {[%clk 0:00:12]} 73. Qxf3+ {[%clk 0:00:04]} 1-0


[Site "https://www.chess.com"]

[Event "Early Titled Tuesday Blitz | February 8 2022"]
[White "Rustemov, Alexander"]
[Black "Khripachenko, Alexander"]
[WhiteFideId "4119002"]
[BlackFideId "54184975"]
[WhiteElo "2822"]
[BlackElo "2177"]
[Result "1-0"]
[Round "02"]
[TimeControl "180+1"]
[Date "2022.02.08"]
[WhiteClock "0:00:41"]
[BlackClock "0:00:07"]

1. d4 {[%clk 0:03:00]}  Nf6 {[%clk 0:03:00]} 2. c4 {[%clk 0:03:00]}  g6 {[%clk 0:02:59]} 3. Nf3 {[%clk 0:03:01]}  d5 {[%clk 0:02:56]} 4. cxd5 {[%clk 0:03:00]}  Nxd5 {[%clk 0:02:54]} 5. e4 {[%clk 0:02:59]}  Nb6 {[%clk 0:02:55]} 6. Nc3 {[%clk 0:02:58]}  Bg7 {[%clk 0:02:56]} 7. h3 {[%clk 0:02:56]}  O-O {[%clk 0:02:56]} 8. Be3 {[%clk 0:02:56]}  Nc6 {[%clk 0:02:56]} 9. Bb5 {[%clk 0:02:50]}  Bd7 {[%clk 0:02:51]} 10. O-O {[%clk 0:02:48]}  Na5 {[%clk 0:02:47]} 11. Bxd7 {[%clk 0:02:38]}  Qxd7 {[%clk 0:02:48]} 12. b3 {[%clk 0:02:35]}  Rad8 {[%clk 0:02:38]} 13. Qe2 {[%clk 0:02:31]}  Nc6 {[%clk 0:02:36]} 14. Rfd1 {[%clk 0:02:30]}  f5 {[%clk 0:02:31]} 15. e5 {[%clk 0:02:14]}  Nb4 {[%clk 0:01:54]} 16. Rac1 {[%clk 0:02:06]}  N4d5 {[%clk 0:01:52]} 17. Nxd5 {[%clk 0:01:56]}  Nxd5 {[%clk 0:01:53]} 18. Bd2 {[%clk 0:01:52]}  e6 {[%clk 0:01:49]} 19. h4 {[%clk 0:01:50]}  f4 {[%clk 0:01:23]} 20. b4 {[%clk 0:01:44]}  Qa4 {[%clk 0:01:22]} 21. Qc4 {[%clk 0:01:43]}  h6 {[%clk 0:01:13]} 22. Ne1 {[%clk 0:01:34]}  Kh8 {[%clk 0:00:59]} 23. Nd3 {[%clk 0:01:33]}  b6 {[%clk 0:00:59]} 24. b5 {[%clk 0:01:30]}  Qxc4 {[%clk 0:00:42]} 25. Rxc4 {[%clk 0:01:31]}  g5 {[%clk 0:00:41]} 26. h5 {[%clk 0:01:28]}  Rd7 {[%clk 0:00:40]} 27. f3 {[%clk 0:01:25]}  Rfd8 {[%clk 0:00:41]} 28. Kf2 {[%clk 0:01:25]}  Bf8 {[%clk 0:00:41]} 29. Ke2 {[%clk 0:01:23]}  Kg7 {[%clk 0:00:41]} 30. a4 {[%clk 0:01:22]}  a6 {[%clk 0:00:39]} 31. bxa6 {[%clk 0:01:18]}  Ra8 {[%clk 0:00:38]} 32. Nf2 {[%clk 0:01:02]}  Rxa6 {[%clk 0:00:38]} 33. Rdc1 {[%clk 0:01:00]}  Be7 {[%clk 0:00:33]} 34. Ng4 {[%clk 0:00:57]}  Ra7 {[%clk 0:00:29]} 35. R1c2 {[%clk 0:00:54]}  Rd8 {[%clk 0:00:30]} 36. Rc6 {[%clk 0:00:51]}  Rxa4 {[%clk 0:00:20]} 37. Rxe6 {[%clk 0:00:51]}  Rxd4 {[%clk 0:00:16]} 38. Rg6+ {[%clk 0:00:51]}  Kf8 {[%clk 0:00:16]} 39. Nxh6 {[%clk 0:00:51]}  Bb4 {[%clk 0:00:12]} 40. Rg8+ {[%clk 0:00:42]}  Ke7 {[%clk 0:00:11]} 41. Nf5+ {[%clk 0:00:43]}  Kf7 {[%clk 0:00:07]} 42. Rxd8 {[%clk 0:00:41]} 1-0


[Site "https://www.chess.com"]

[Event "Early Titled Tuesday Blitz | February 8 2022"]
[White "Sadhwani, Raunak"]
[Black "Lodici, Lorenzo"]
[WhiteFideId "35093487"]
[BlackFideId "884189"]
[WhiteElo "2616"]
[BlackElo "2265"]
[Result "1-0"]
[Round "02"]
[TimeControl "180+1"]
[Date "2022.02.08"]
[WhiteClock "0:00:15"]
[BlackClock "0:00:05"]

1. d4 {[%clk 0:03:00]}  Nf6 {[%clk 0:02:59]} 2. Nf3 {[%clk 0:03:00]}  b6 {[%clk 0:03:00]} 3. c4 {[%clk 0:02:59]}  Bb7 {[%clk 0:03:00]} 4. Nc3 {[%clk 0:03:00]}  Ne4 {[%clk 0:03:00]} 5. Qc2 {[%clk 0:02:52]}  Nxc3 {[%clk 0:02:59]} 6. Qxc3 {[%clk 0:02:53]}  e6 {[%clk 0:02:59]} 7. Bf4 {[%clk 0:02:50]}  Nc6 {[%clk 0:02:49]} 8. a3 {[%clk 0:02:49]}  Ne7 {[%clk 0:02:49]} 9. e3 {[%clk 0:02:49]}  Ng6 {[%clk 0:02:46]} 10. Bg3 {[%clk 0:02:49]}  Bd6 {[%clk 0:02:46]} 11. Bd3 {[%clk 0:02:46]}  O-O {[%clk 0:02:45]} 12. Qc2 {[%clk 0:02:43]}  f5 {[%clk 0:02:42]} 13. Bxd6 {[%clk 0:02:36]}  cxd6 {[%clk 0:02:42]} 14. h4 {[%clk 0:02:25]}  Bxf3 {[%clk 0:02:31]} 15. gxf3 {[%clk 0:02:26]}  Nxh4 {[%clk 0:02:31]} 16. O-O-O {[%clk 0:02:19]}  Rc8 {[%clk 0:02:30]} 17. Rh3 {[%clk 0:02:17]}  d5 {[%clk 0:02:27]} 18. Rdh1 {[%clk 0:02:17]}  dxc4 {[%clk 0:02:25]} 19. Be2 {[%clk 0:02:17]}  Ng6 {[%clk 0:02:17]} 20. Rxh7 {[%clk 0:02:17]}  b5 {[%clk 0:02:09]} 21. f4 {[%clk 0:01:51]}  Qa5 {[%clk 0:02:04]} 22. Qc3 {[%clk 0:01:24]}  Qxc3+ {[%clk 0:02:01]} 23. bxc3 {[%clk 0:01:25]}  Ne7 {[%clk 0:01:48]} 24. Kd2 {[%clk 0:01:22]}  Nd5 {[%clk 0:01:44]} 25. R7h2 {[%clk 0:01:12]}  Nf6 {[%clk 0:01:39]} 26. Bf3 {[%clk 0:01:12]}  Kf7 {[%clk 0:01:38]} 27. Rb1 {[%clk 0:01:07]}  Rb8 {[%clk 0:01:37]} 28. Rhh1 {[%clk 0:01:05]}  d5 {[%clk 0:01:35]} 29. Rb4 {[%clk 0:00:59]}  Rb6 {[%clk 0:01:34]} 30. Rhb1 {[%clk 0:00:58]}  Rfb8 {[%clk 0:01:34]} 31. Kc2 {[%clk 0:00:58]}  a5 {[%clk 0:01:34]} 32. R4b2 {[%clk 0:00:59]}  Ke7 {[%clk 0:01:25]} 33. Rg1 {[%clk 0:00:56]}  Kf7 {[%clk 0:01:24]} 34. Rgb1 {[%clk 0:00:56]}  R8b7 {[%clk 0:01:24]} 35. Bd1 {[%clk 0:00:51]}  Ne4 {[%clk 0:01:20]} 36. f3 {[%clk 0:00:50]}  Nf6 {[%clk 0:01:07]} 37. Kd2 {[%clk 0:00:50]}  Nd7 {[%clk 0:01:05]} 38. Bc2 {[%clk 0:00:49]}  Nb8 {[%clk 0:01:05]} 39. Ba4 {[%clk 0:00:44]}  b4 {[%clk 0:00:58]} 40. axb4 {[%clk 0:00:44]}  axb4 {[%clk 0:00:58]} 41. Rxb4 {[%clk 0:00:45]}  Rxb4 {[%clk 0:00:58]} 42. cxb4 {[%clk 0:00:42]}  Na6 {[%clk 0:00:53]} 43. b5 {[%clk 0:00:39]}  Nc7 {[%clk 0:00:53]} 44. Kc3 {[%clk 0:00:39]}  Ke7 {[%clk 0:00:46]} 45. Kb4 {[%clk 0:00:24]}  Kd6 {[%clk 0:00:43]} 46. Rg1 {[%clk 0:00:25]}  Na8 {[%clk 0:00:36]} 47. Rg6 {[%clk 0:00:25]}  Nb6 {[%clk 0:00:22]} 48. Bc2 {[%clk 0:00:25]}  Ra7 {[%clk 0:00:22]} 49. Bxf5 {[%clk 0:00:21]}  Ra4+ {[%clk 0:00:22]} 50. Kc3 {[%clk 0:00:21]}  Ra3+ {[%clk 0:00:23]} 51. Kd2 {[%clk 0:00:22]}  Ra2+ {[%clk 0:00:19]} 52. Ke1 {[%clk 0:00:19]}  Na4 {[%clk 0:00:16]} 53. Rxe6+ {[%clk 0:00:20]}  Kc7 {[%clk 0:00:16]} 54. Rc6+ {[%clk 0:00:20]}  Kb7 {[%clk 0:00:17]} 55. e4 {[%clk 0:00:20]}  Nc3 {[%clk 0:00:16]} 56. exd5 {[%clk 0:00:19]}  Nxd5 {[%clk 0:00:11]} 57. Be4 {[%clk 0:00:17]}  Ra1+ {[%clk 0:00:08]} 58. Kf2 {[%clk 0:00:18]}  Nb6 {[%clk 0:00:07]} 59. Rxc4+ {[%clk 0:00:17]}  Kb8 {[%clk 0:00:06]} 60. Rc6 {[%clk 0:00:18]}  Nd7 {[%clk 0:00:06]} 61. Rg6 {[%clk 0:00:16]}  Ra5 {[%clk 0:00:05]} 62. Rxg7 {[%clk 0:00:16]}  Nb6 {[%clk 0:00:05]} 63. Rb7+ {[%clk 0:00:15]} 1-0


[Site "https://www.chess.com"]

[Event "Early Titled Tuesday Blitz | February 8 2022"]
[White "Sahil, Tickoo"]
[Black "Vivas Zamora, Fabian Ernesto"]
[WhiteFideId "5019710"]
[BlackFideId "3902480"]
[WhiteElo "2099"]
[BlackElo "1966"]
[Result "1-0"]
[Round "02"]
[TimeControl "180+1"]
[Date "2022.02.08"]
[WhiteClock "0:00:55"]
[BlackClock "0:00:01"]

1. d4 {[%clk 0:03:00]}  Nf6 {[%clk 0:02:57]} 2. Bf4 {[%clk 0:02:54]}  g6 {[%clk 0:02:57]} 3. e3 {[%clk 0:02:53]}  Bg7 {[%clk 0:02:57]} 4. h4 {[%clk 0:02:52]}  c5 {[%clk 0:02:50]} 5. c3 {[%clk 0:02:47]}  h5 {[%clk 0:02:36]} 6. Nf3 {[%clk 0:02:46]}  b6 {[%clk 0:02:18]} 7. a4 {[%clk 0:02:43]}  Nc6 {[%clk 0:02:08]} 8. Nbd2 {[%clk 0:02:41]}  Bb7 {[%clk 0:02:07]} 9. Ne5 {[%clk 0:02:40]}  O-O {[%clk 0:01:56]} 10. Ndf3 {[%clk 0:02:27]}  Nxe5 {[%clk 0:01:47]} 11. Bxe5 {[%clk 0:02:20]}  d6 {[%clk 0:01:46]} 12. Bg3 {[%clk 0:02:19]}  Ne4 {[%clk 0:01:43]} 13. Bf4 {[%clk 0:02:18]}  Qc7 {[%clk 0:01:33]} 14. Be2 {[%clk 0:02:17]}  e5 {[%clk 0:01:31]} 15. Bh2 {[%clk 0:02:12]}  cxd4 {[%clk 0:01:24]} 16. cxd4 {[%clk 0:02:10]}  Rac8 {[%clk 0:01:22]} 17. O-O {[%clk 0:02:09]}  Qc2 {[%clk 0:01:11]} 18. dxe5 {[%clk 0:02:06]}  dxe5 {[%clk 0:01:06]} 19. Bxe5 {[%clk 0:02:00]}  Rfd8 {[%clk 0:00:58]} 20. Qxc2 {[%clk 0:01:55]}  Rxc2 {[%clk 0:00:59]} 21. Bxg7 {[%clk 0:01:51]}  Kxg7 {[%clk 0:00:57]} 22. Rad1 {[%clk 0:01:28]}  Rxd1 {[%clk 0:00:50]} 23. Bxd1 {[%clk 0:01:27]}  Rxb2 {[%clk 0:00:50]} 24. Nd4 {[%clk 0:01:24]}  Nc3 {[%clk 0:00:47]} 25. Bb3 {[%clk 0:01:06]}  Ba6 {[%clk 0:00:11]} 26. Rc1 {[%clk 0:00:59]}  Ne2+ {[%clk 0:00:08]} 27. Nxe2 {[%clk 0:00:58]}  Rxb3 {[%clk 0:00:06]} 28. Nd4 {[%clk 0:00:58]}  Ra3 {[%clk 0:00:05]} 29. Rc7 {[%clk 0:00:58]}  Rxa4 {[%clk 0:00:03]} 30. Rxa7 {[%clk 0:00:57]}  Bb5 {[%clk 0:00:02]} 31. Nxb5 {[%clk 0:00:55]}  Rxa7 {[%clk 0:00:01]} 32. Nxa7 {[%clk 0:00:55]} 1-0


[Site "https://www.chess.com"]

[Event "Early Titled Tuesday Blitz | February 8 2022"]
[White "Samaganova, Aleksandra"]
[Black "Baches Garcia, Guillermo"]
[WhiteFideId "13800221"]
[BlackFideId "2209764"]
[WhiteElo "1859"]
[BlackElo "2446"]
[Result "0-1"]
[Round "02"]
[TimeControl "180+1"]
[Date "2022.02.08"]
[WhiteClock "0:00:01"]
[BlackClock "0:00:17"]

1. c4 {[%clk 0:03:00]}  e6 {[%clk 0:02:58]} 2. Nc3 {[%clk 0:02:59]}  d5 {[%clk 0:02:58]} 3. e3 {[%clk 0:02:59]}  Nf6 {[%clk 0:02:55]} 4. Nf3 {[%clk 0:02:58]}  c5 {[%clk 0:02:52]} 5. d4 {[%clk 0:02:56]}  cxd4 {[%clk 0:02:38]} 6. exd4 {[%clk 0:02:55]}  Bb4 {[%clk 0:02:30]} 7. Bd3 {[%clk 0:02:47]}  dxc4 {[%clk 0:02:26]} 8. Bxc4 {[%clk 0:02:46]}  O-O {[%clk 0:02:23]} 9. O-O {[%clk 0:02:45]}  Bd7 {[%clk 0:02:17]} 10. Ne5 {[%clk 0:02:37]}  Bc6 {[%clk 0:02:15]} 11. Bg5 {[%clk 0:02:28]}  Be7 {[%clk 0:02:11]} 12. Re1 {[%clk 0:02:17]}  Nbd7 {[%clk 0:01:59]} 13. Nxc6 {[%clk 0:01:55]}  bxc6 {[%clk 0:02:00]} 14. Rc1 {[%clk 0:01:42]}  Nb6 {[%clk 0:01:59]} 15. Bd3 {[%clk 0:01:40]}  g6 {[%clk 0:01:46]} 16. Bb1 {[%clk 0:01:32]}  Nbd5 {[%clk 0:01:39]} 17. h3 {[%clk 0:01:26]}  Qb6 {[%clk 0:01:19]} 18. Na4 {[%clk 0:01:08]}  Qb5 {[%clk 0:01:13]} 19. b3 {[%clk 0:01:06]}  Rfd8 {[%clk 0:01:07]} 20. Bd3 {[%clk 0:01:05]}  Qb4 {[%clk 0:01:02]} 21. Rc4 {[%clk 0:00:54]}  Qb7 {[%clk 0:00:51]} 22. Qc1 {[%clk 0:00:47]}  Rac8 {[%clk 0:00:47]} 23. Nc5 {[%clk 0:00:35]}  Qb6 {[%clk 0:00:39]} 24. Ra4 {[%clk 0:00:29]}  Re8 {[%clk 0:00:33]} 25. Ra6 {[%clk 0:00:25]}  Qc7 {[%clk 0:00:31]} 26. Qa3 {[%clk 0:00:22]}  Ra8 {[%clk 0:00:27]} 27. Qa4 {[%clk 0:00:19]}  Rec8 {[%clk 0:00:26]} 28. b4 {[%clk 0:00:08]}  Kg7 {[%clk 0:00:26]} 29. a3 {[%clk 0:00:08]}  Nb6 {[%clk 0:00:25]} 30. Qc2 {[%clk 0:00:07]}  Nfd5 {[%clk 0:00:25]} 31. Bxe7 {[%clk 0:00:07]}  Qxe7 {[%clk 0:00:22]} 32. Be4 {[%clk 0:00:06]}  Qf6 {[%clk 0:00:20]} 33. Qd2 {[%clk 0:00:05]}  Rd8 {[%clk 0:00:19]} 34. Bf3 {[%clk 0:00:05]}  Nc7 {[%clk 0:00:19]} 35. Ne4 {[%clk 0:00:04]}  Qxd4 {[%clk 0:00:19]} 36. Qxd4+ {[%clk 0:00:04]}  Rxd4 {[%clk 0:00:19]} 37. Ra5 {[%clk 0:00:05]}  Ncd5 {[%clk 0:00:18]} 38. Rc5 {[%clk 0:00:05]}  Rc8 {[%clk 0:00:17]} 39. Rec1 {[%clk 0:00:04]}  Ne7 {[%clk 0:00:17]} 40. b5 {[%clk 0:00:02]}  Nd7 {[%clk 0:00:17]} 41. R5c2 {[%clk 0:00:01]}  c5 {[%clk 0:00:17]} 0-1


[Site "https://www.chess.com"]

[Event "Early Titled Tuesday Blitz | February 8 2022"]
[White "Samunenkov, Ihor"]
[Black "Manukyan, Artyom"]
[WhiteFideId "14187086"]
[BlackFideId "13305786"]
[WhiteElo "2406"]
[BlackElo "2034"]
[Result "1-0"]
[Round "02"]
[TimeControl "180+1"]
[Date "2022.02.08"]
[WhiteClock "0:00:05"]
[BlackClock "0:00:04"]

1. d4 {[%clk 0:03:00]}  d5 {[%clk 0:02:59]} 2. c4 {[%clk 0:03:00]}  e6 {[%clk 0:03:00]} 3. Nc3 {[%clk 0:02:58]}  Nf6 {[%clk 0:03:00]} 4. cxd5 {[%clk 0:02:58]}  exd5 {[%clk 0:03:01]} 5. Bg5 {[%clk 0:02:59]}  c6 {[%clk 0:03:02]} 6. e3 {[%clk 0:02:59]}  Qb6 {[%clk 0:03:02]} 7. Qc2 {[%clk 0:02:46]}  Ne4 {[%clk 0:03:02]} 8. Nxe4 {[%clk 0:02:36]}  dxe4 {[%clk 0:03:03]} 9. Bf4 {[%clk 0:02:07]}  Bb4+ {[%clk 0:02:59]} 10. Kd1 {[%clk 0:02:07]}  Bf5 {[%clk 0:02:58]} 11. a3 {[%clk 0:02:04]}  Be7 {[%clk 0:02:56]} 12. Bc4 {[%clk 0:02:03]}  O-O {[%clk 0:02:54]} 13. Ne2 {[%clk 0:02:03]}  Nd7 {[%clk 0:02:53]} 14. Nc3 {[%clk 0:01:58]}  Nf6 {[%clk 0:02:50]} 15. Ke2 {[%clk 0:01:56]}  Bg4+ {[%clk 0:02:31]} 16. f3 {[%clk 0:01:50]}  exf3+ {[%clk 0:02:32]} 17. gxf3 {[%clk 0:01:51]}  Bh5 {[%clk 0:02:32]} 18. Kf2 {[%clk 0:01:43]}  Rac8 {[%clk 0:02:26]} 19. Rad1 {[%clk 0:01:39]}  Bg6 {[%clk 0:02:22]} 20. e4 {[%clk 0:01:39]}  Nh5 {[%clk 0:02:12]} 21. Be3 {[%clk 0:01:27]}  Bh4+ {[%clk 0:02:11]} 22. Kg2 {[%clk 0:01:23]}  Qc7 {[%clk 0:02:11]} 23. Qd2 {[%clk 0:01:17]}  Kh8 {[%clk 0:02:04]} 24. Rhf1 {[%clk 0:01:09]}  Rcd8 {[%clk 0:01:53]} 25. Qc1 {[%clk 0:01:00]}  Qe7 {[%clk 0:01:43]} 26. Kh1 {[%clk 0:00:57]}  f5 {[%clk 0:01:33]} 27. e5 {[%clk 0:00:57]}  f4 {[%clk 0:01:30]} 28. Bf2 {[%clk 0:00:53]}  Bxf2 {[%clk 0:01:26]} 29. Rxf2 {[%clk 0:00:54]}  Qh4 {[%clk 0:01:27]} 30. Kg1 {[%clk 0:00:47]}  c5 {[%clk 0:01:18]} 31. dxc5 {[%clk 0:00:32]}  Qg5+ {[%clk 0:01:17]} 32. Kf1 {[%clk 0:00:25]}  Qxe5 {[%clk 0:01:18]} 33. Rxd8 {[%clk 0:00:20]}  Rxd8 {[%clk 0:01:16]} 34. Rd2 {[%clk 0:00:20]}  Rf8 {[%clk 0:01:09]} 35. Rd5 {[%clk 0:00:19]}  Qe7 {[%clk 0:01:04]} 36. Qe1 {[%clk 0:00:19]}  Qf6 {[%clk 0:00:50]} 37. Rd7 {[%clk 0:00:14]}  Bf5 {[%clk 0:00:39]} 38. Rd6 {[%clk 0:00:03]}  Bh3+ {[%clk 0:00:38]} 39. Ke2 {[%clk 0:00:03]}  Re8+ {[%clk 0:00:26]} 40. Kd2 {[%clk 0:00:03]}  Qf8 {[%clk 0:00:07]} 41. Qh4 {[%clk 0:00:04]}  Bf5 {[%clk 0:00:01]} 42. Qxh5 {[%clk 0:00:04]}  Bg6 {[%clk 0:00:02]} 43. Qd5 {[%clk 0:00:04]}  b6 {[%clk 0:00:01]} 44. b4 {[%clk 0:00:03]}  bxc5 {[%clk 0:00:02]} 45. bxc5 {[%clk 0:00:04]}  Rb8 {[%clk 0:00:02]} 46. Bb3 {[%clk 0:00:04]}  a5 {[%clk 0:00:02]} 47. a4 {[%clk 0:00:04]}  Re8 {[%clk 0:00:02]} 48. c6 {[%clk 0:00:04]}  Qe7 {[%clk 0:00:03]} 49. Ne4 {[%clk 0:00:04]}  Bxe4 {[%clk 0:00:03]} 50. fxe4 {[%clk 0:00:04]}  Qh4 {[%clk 0:00:03]} 51. Rd8 {[%clk 0:00:04]}  Qf2+ {[%clk 0:00:03]} 52. Kc3 {[%clk 0:00:04]}  Qe3+ {[%clk 0:00:03]} 53. Kc4 {[%clk 0:00:05]}  Qc1+ {[%clk 0:00:03]} 54. Kb5 {[%clk 0:00:04]}  Qf1+ {[%clk 0:00:04]} 55. Kb6 {[%clk 0:00:04]}  Qf2+ {[%clk 0:00:04]} 56. Kb7 {[%clk 0:00:05]} 1-0


[Site "https://www.chess.com"]

[Event "Early Titled Tuesday Blitz | February 8 2022"]
[White "San, Thit Lwin"]
[Black "Stankovic, Ivan G"]
[WhiteFideId "13001272"]
[BlackFideId "902837"]
[WhiteElo "2232"]
[BlackElo "2195"]
[Result "1/2-1/2"]
[Round "02"]
[TimeControl "180+1"]
[Date "2022.02.08"]
[WhiteClock "0:00:06"]
[BlackClock "0:00:08"]

1. Nf3 {[%clk 0:02:59]}  Nf6 {[%clk 0:02:56]} 2. c4 {[%clk 0:02:59]}  d6 {[%clk 0:02:52]} 3. Nc3 {[%clk 0:03:00]}  g6 {[%clk 0:02:49]} 4. d4 {[%clk 0:03:00]}  Bg7 {[%clk 0:02:45]} 5. e4 {[%clk 0:03:01]}  Nbd7 {[%clk 0:02:45]} 6. Be2 {[%clk 0:03:01]}  e5 {[%clk 0:02:43]} 7. O-O {[%clk 0:03:01]}  O-O {[%clk 0:02:43]} 8. Be3 {[%clk 0:03:01]}  c6 {[%clk 0:02:36]} 9. Qd2 {[%clk 0:02:41]}  Ng4 {[%clk 0:02:26]} 10. Bg5 {[%clk 0:02:40]}  f6 {[%clk 0:02:17]} 11. Bh4 {[%clk 0:02:39]}  Qe7 {[%clk 0:02:11]} 12. Rfd1 {[%clk 0:02:26]}  Rd8 {[%clk 0:02:01]} 13. b4 {[%clk 0:02:20]}  a5 {[%clk 0:01:31]} 14. b5 {[%clk 0:02:10]}  g5 {[%clk 0:01:08]} 15. Bg3 {[%clk 0:02:04]}  Nf8 {[%clk 0:01:07]} 16. dxe5 {[%clk 0:01:47]}  Nxe5 {[%clk 0:01:04]} 17. Bxe5 {[%clk 0:01:38]}  fxe5 {[%clk 0:01:02]} 18. Qxg5 {[%clk 0:01:37]}  Qxg5 {[%clk 0:00:58]} 19. Nxg5 {[%clk 0:01:36]}  h6 {[%clk 0:00:59]} 20. Nf3 {[%clk 0:01:35]}  Ne6 {[%clk 0:00:59]} 21. bxc6 {[%clk 0:01:28]}  bxc6 {[%clk 0:00:59]} 22. Rab1 {[%clk 0:01:29]}  Nd4 {[%clk 0:00:58]} 23. Nxd4 {[%clk 0:01:21]}  exd4 {[%clk 0:00:58]} 24. Na4 {[%clk 0:01:21]}  Be6 {[%clk 0:00:43]} 25. Rb6 {[%clk 0:01:09]}  c5 {[%clk 0:00:41]} 26. Nxc5 {[%clk 0:01:05]}  dxc5 {[%clk 0:00:30]} 27. Rxe6 {[%clk 0:01:04]}  Rab8 {[%clk 0:00:31]} 28. e5 {[%clk 0:00:41]}  d3 {[%clk 0:00:25]} 29. Bf3 {[%clk 0:00:31]}  Rd4 {[%clk 0:00:25]} 30. Bd5 {[%clk 0:00:29]}  Kh8 {[%clk 0:00:25]} 31. Ra6 {[%clk 0:00:23]}  Bxe5 {[%clk 0:00:25]} 32. g3 {[%clk 0:00:22]}  d2 {[%clk 0:00:24]} 33. f4 {[%clk 0:00:21]}  Bg7 {[%clk 0:00:23]} 34. Rxa5 {[%clk 0:00:21]}  Re8 {[%clk 0:00:15]} 35. Kf2 {[%clk 0:00:20]}  Rd3 {[%clk 0:00:15]} 36. Ra8 {[%clk 0:00:19]}  Bd4+ {[%clk 0:00:14]} 37. Kg2 {[%clk 0:00:18]}  Rxa8 {[%clk 0:00:14]} 38. Bxa8 {[%clk 0:00:17]}  Ra3 {[%clk 0:00:13]} 39. Rxd2 {[%clk 0:00:17]}  Rxa8 {[%clk 0:00:13]} 40. Re2 {[%clk 0:00:17]}  Kg7 {[%clk 0:00:12]} 41. Kf3 {[%clk 0:00:17]}  Kf6 {[%clk 0:00:13]} 42. g4 {[%clk 0:00:17]}  Ra3+ {[%clk 0:00:13]} 43. Kg2 {[%clk 0:00:17]}  Re3 {[%clk 0:00:13]} 44. Rxe3 {[%clk 0:00:13]}  Bxe3 {[%clk 0:00:13]} 45. Kf3 {[%clk 0:00:14]}  Bg1 {[%clk 0:00:13]} 46. Ke4 {[%clk 0:00:14]}  Bxh2 {[%clk 0:00:12]} 47. a4 {[%clk 0:00:10]}  Ke6 {[%clk 0:00:09]} 48. a5 {[%clk 0:00:10]}  Kd6 {[%clk 0:00:09]} 49. g5 {[%clk 0:00:08]}  hxg5 {[%clk 0:00:04]} 50. fxg5 {[%clk 0:00:08]}  Bg1 {[%clk 0:00:04]} 51. g6 {[%clk 0:00:06]}  Bd4 {[%clk 0:00:04]} 52. a6 {[%clk 0:00:04]}  Kc6 {[%clk 0:00:04]} 53. a7 {[%clk 0:00:03]}  Kb7 {[%clk 0:00:05]} 54. Kd5 {[%clk 0:00:04]}  Kxa7 {[%clk 0:00:05]} 55. g7 {[%clk 0:00:04]}  Bxg7 {[%clk 0:00:05]} 56. Kxc5 {[%clk 0:00:05]}  Kb7 {[%clk 0:00:06]} 57. Kd5 {[%clk 0:00:05]}  Kc8 {[%clk 0:00:07]} 58. c5 {[%clk 0:00:05]}  Kc7 {[%clk 0:00:07]} 59. Ke6 {[%clk 0:00:06]}  Bf8 {[%clk 0:00:08]} 60. Kd5 {[%clk 0:00:06]}  Bxc5 {[%clk 0:00:08]} 1/2-1/2


[Site "https://www.chess.com"]